[Event "Western Asian Girls Chess-ch 2023"]
[Site "Colombo"]
[Date "2023.12.04"]
[Round "8.6"]
[White "Sasvatha A"]
[Black "Gamage, Desandhi Dhihansa"]
[Result "1-0"]
[ECO "D02"]
[WhiteElo "1568"]
[BlackElo "1608"]
[Annotator "NA RC"]
[PlyCount "133"]
[EventDate "2023.11.30"]
[EventCountry "SRI"]
[SourceTitle "playchess.com"]
[Source "ChessBase"]
[SourceQuality "1"]
[TimeControl "5400+30"]

1. d4 {[%emt 0:03:58]} Nf6 {[%emt 1:31:00]} 2. Nf3 {[%emt 0:00:05]} e6 {[%emt 0:00:00]} 3. Bf4 {[%emt 0:01:05]} d5 {[%emt 0:00:00]} 4. e3 {[%emt 0:00:04]} Bd6 {[%emt 0:00:00]} 5. Bxd6 {[%emt 0:00:17]} Qxd6 {[%emt 0:00:00]} 6. c3 {[%emt 0:00:07]} Nbd7 {[%emt 0:02:30]} 7. Nbd2 {[%emt 0:00:09]} O-O {[%emt 0:00:00]} 8. Bd3 {[%emt 0:00:16]} e5 {[%emt 0:00:00]} 9. dxe5 {[%emt 0:00:07]} Nxe5 {[%emt 0:00:00]} 10. Nxe5 {[%emt 0:00:15]} Qxe5 {[%emt 0:00:00]} 11. Nf3 {[%emt 0:00:06]} Qd6 {[%emt 0:00:00]} 12. Be2 {[%emt 0:00:07]} Ne4 {[%emt 0:00:00]} 13. O-O {[%emt 0:00:31]} Be6 {[%emt 0:00:00]} 14. Qc2 {[%emt 0:01:00]} Qe7 {[%emt 0:00:00]} 15. c4 {[%emt 0:02:24]} Bf5 {[%emt 0:00:00]} 16. Bd3 {[%emt 0:08:00]} dxc4 {[%emt 0:00:00]} 17. Qxc4 {[%emt 0:01:08]} Rad8 {[%emt 0:00:00]} 18. Rfd1 {[%emt 0:01:25]} Rfe8 {[%emt 0:00:00]} 19. Bxe4 {[%emt 0:03:11]} Bxe4 {[%emt 0:00:00]} 20. Ne1 {[%emt 0:00:15]} Bc6 {[%emt 0:00:00]} 21. Qb3 {[%emt 0:02:32]} Rxd1 {[%emt 0:00:00]} 22. Rxd1 {[%emt 0:00:15]} Rd8 {[%emt 0:00:00]} 23. Rxd8+ {[%emt 0:00:13]} Qxd8 {[%emt 0:00:00]} 24. Qd3 {[%emt 0:00:26]} Qd5 {[%emt 0:00:00]} 25. Qxd5 {[%emt 0:00:41]} Bxd5 {[%emt 0:00:00]} 26. b3 {[%emt 0:00:08]} a5 {[%emt 0:00:00]} 27. Nd3 {[%emt 0:01:56]} Kf8 {[%emt 0:00:00]} 28. f3 {[%emt 0:00:19]} Ke7 {[%emt 0:11:00]} 29. e4 {[%emt 0:00:06]} Bc6 {[%emt 0:00:00]} 30. Kf2 {[%emt 0:00:14]} Kd6 {[%emt 0:00:00]} 31. Ke3 {[%emt 0:01:17]} Bb5 {[%emt 0:00:00]} 32. Nb2 {[%emt 0:00:57]} Kc5 {[%emt 0:00:00]} 33. a3 {[%emt 0:00:06]} Bd7 {[%emt 0:00:00]} 34. Kd3 {[%emt 0:00:15]} b5 {[%emt 0:00:00]} 35. Ke3 {[%emt 0:02:55]} Kb6 {[%emt 0:00:00]} 36. b4 {[%emt 0:04:31]} axb4 {[%emt 0:00:00]} 37. axb4 {[%emt 0:00:07]} c5 {[%emt 0:00:00]} 38. bxc5+ {[%emt 0:00:34]} Kxc5 {[%emt 0:00:00]} 39. Nd3+ {[%emt 0:00:07]} Kb6 {[%emt 0:00:00]} 40. Kd4 {[%emt 0:00:06]} Ka5 {[%emt 0:00:00]} 41. Kc5 {[%emt 0:01:03]} Be6 {[%emt 0:00:00]} 42. Nb4 {[%emt 0:00:07]} Bc4 {[%emt 0:00:00]} 43. g3 {[%emt 0:00:08]} Be2 {[%emt 0:00:00]} 44. f4 {[%emt 0:00:14]} Bf3 {[%emt 0:00:00]} 45. e5 {[%emt 0:00:28]} Bg4 {[%emt 0:00:00]} 46. Nc2 {[%emt 0:01:31]} Ka4 {[%emt 0:00:00]} 47. Nb4 {[%emt 0:00:26]} g6 {[%emt 0:00:00]} 48. Nd5 {[%emt 0:00:24]} h5 {[%emt 0:00:00]} 49. Nc3+ {[%emt 0:00:50]} Kb3 {[%emt 0:00:00]} 50. Nxb5 {[%emt 0:00:06]} Kc2 {[%emt 0:00:00]} 51. Kd6 {[%emt 0:04:36]} h4 {[%emt 0:00:00]} 52. Ke7 {[%emt 0:00:41]} hxg3 {[%emt 0:00:39]} 53. hxg3 {[%emt 0:00:10]} Be6 {[%emt 0:02:13]} 54. Nd4+ {[%emt 0:00:05]} Kd3 {[%emt 0:10:08]} 55. Nxe6 {[%emt 0:00:06]} fxe6 {[%emt 0:00:00]} 56. Kxe6 {[%emt 0:00:06]} g5 {[%emt 0:00:00]} 57. fxg5 {[%emt 0:00:06]} Ke4 {[%emt 0:01:30]} 58. g6 {[%emt 0:00:07]} Kd4 {[%emt 0:00:00]} 59. g7 {[%emt 0:00:04]} Kc4 {[%emt 0:00:00]} 60. g8=Q {[%emt 0:00:07]} Kc5 {[%emt 0:00:00]} 61. Qd8 {[%emt 0:00:05]} Kc6 {[%emt 0:00:00]} 62. Qd5+ {[%emt 0:00:07]} Kc7 {[%emt 0:00:00]} 63. Qd6+ {[%emt 0:00:07]} Kc8 {[%emt 0:00:00]} 64. Qd7+ {[%emt 0:00:06]} Kb8 {[%emt 0:00:00]} 65. Kd6 {[%emt 0:00:08]} Ka8 {[%emt 0:00:00]} 66. Kc6 {[%emt 0:00:07]} Kb8 {[%emt 0:00:00]} 67. Qb7# {[%emt 0:00:05]} 1-0

[Event "Western Asian Girls Chess-ch 2023"]
[Site "Colombo"]
[Date "2023.12.04"]
[Round "8.7"]
[White "Rathnayake, R M Dulinma Hemalni"]
[Black "Newansa, M Esandi"]
[Result "1-0"]
[ECO "B15"]
[WhiteElo "1532"]
[BlackElo "1531"]
[Annotator "NA RC"]
[PlyCount "118"]
[EventDate "2023.11.30"]
[EventCountry "SRI"]
[SourceTitle "playchess.com"]
[Source "ChessBase"]
[SourceQuality "1"]
[TimeControl "5400+30"]

1. e4 {[%emt 0:03:08]} c6 {[%emt 0:09:56]} 2. d4 {[%emt 0:00:06]} d5 {[%emt 0:00:06]} 3. Nc3 {[%emt 0:00:04]} dxe4 {[%emt 0:00:04]} 4. Nxe4 {[%emt 0:00:08]} Nf6 {[%emt 0:00:03]} 5. Nxf6+ {[%emt 0:00:05]} exf6 {[%emt 0:00:05]} 6. Be3 {[%emt 0:00:04]} Bd6 {[%emt 0:00:04]} 7. Bd3 {[%emt 0:00:03]} O-O {[%emt 0:00:11]} 8. Nf3 {[%emt 0:00:09]} Bg4 {[%emt 0:00:06]} 9. O-O {[%emt 0:00:13]} Re8 {[%emt 0:00:26]} 10. h3 {[%emt 0:01:31]} Bh5 {[%emt 0:00:18]} 11. c4 {[%emt 0:03:16]} Nd7 {[%emt 0:00:20]} 12. Be2 {[%emt 0:05:43]} Bb8 {[%emt 0:09:49]} 13. Qd2 {[%emt 0:12:16]} Nb6 {[%emt 0:00:59]} 14. Rac1 {[%emt 0:03:18]} f5 {[%emt 0:02:49]} 15. Rfe1 {[%emt 0:03:17]} Bc7 {[%emt 0:01:37]} 16. b3 {[%emt 0:04:03]} Qe7 {[%emt 0:08:51]} 17. Bf4 {[%emt 0:08:13]} Bxf4 {[%emt 0:06:33]} 18. Qxf4 {[%emt 0:00:12]} Qf6 {[%emt 0:00:32]} 19. Ne5 {[%emt 0:06:19]} Bxe2 {[%emt 0:01:01]} 20. Rxe2 {[%emt 0:03:57]} Rad8 {[%emt 0:00:26]} 21. Rce1 {[%emt 0:00:28]} Re6 {[%emt 0:23:20]} 22. Nf3 {[%emt 0:04:04]} Rxe2 {[%emt 0:07:11]} 23. Rxe2 {[%emt 0:00:13]} g6 {[%emt 0:05:17]} 24. Qc7 {[%emt 0:02:52]} Nc8 {[%emt 0:04:12]} 25. Qxb7 {[%emt 0:03:34]} Kg7 {[%emt 0:18:44]} 26. Qc7 {[%emt 0:00:43]} g5 {[%emt 0:00:00]} 27. Qe5 {[%emt 0:00:32]} Qxe5 {[%emt 0:00:00]} 28. Rxe5 {[%emt 0:00:38]} Kf6 {[%emt 0:01:30]} 29. g4 {[%emt 0:01:01]} Ne7 {[%emt 0:00:00]} 30. Ra5 {[%emt 0:00:52]} Rd7 {[%emt 0:00:00]} 31. Kf1 {[%emt 0:00:35]} h6 {[%emt 0:00:00]} 32. Ke2 {[%emt 0:00:23]} fxg4 {[%emt 0:00:00]} 33. hxg4 {[%emt 0:02:23]} Ng6 {[%emt 0:00:00]} 34. Ra6 {[%emt 0:33:07]} Nf4+ {[%emt 0:00:00]} 35. Kd2 {[%emt 0:00:00]} Re7 {[%emt 0:03:30]} 36. Rxc6+ {[%emt 0:00:00]} Kg7 {[%emt 0:00:00]} 37. Ng1 {[%emt 0:00:00]} Rd7 {[%emt 0:00:00]} 38. d5 {[%emt 0:00:00]} Ng6 {[%emt 0:00:00]} 39. Nf3 {[%emt 0:00:00]} Kf8 {[%emt 0:00:00]} 40. d6 {[%emt 0:00:00]} Ne7 {[%emt 0:00:00]} 41. Ne5 {[%emt 0:00:00]} Rd8 {[%emt 0:00:00]} 42. Ra6 {[%emt 0:00:00]} f6 {[%emt 0:00:00]} 43. Nd3 {[%emt 0:00:00]} Nc8 {[%emt 0:00:00]} 44. c5 {[%emt 0:00:00]} Kf7 {[%emt 0:00:00]} 45. Ra4 {[%emt 0:00:00]} Ke6 {[%emt 0:05:00]} 46. Rd4 {[%emt 0:00:00]} f5 {[%emt 0:00:00]} 47. f3 {[%emt 0:00:00]} Rd7 {[%emt 0:00:00]} 48. Nb4 {[%emt 0:00:00]} fxg4 {[%emt 0:00:00]} 49. fxg4 {[%emt 0:00:00]} Ke5 {[%emt 0:02:00]} 50. Nc6+ {[%emt 0:00:00]} Ke6 {[%emt 0:00:30]} 51. Nb8 {[%emt 0:00:00]} Rd8 {[%emt 0:00:00]} 52. d7 {[%emt 0:00:00]} Ne7 {[%emt 0:00:00]} 53. c6 {[%emt 0:00:00]} Rxb8 {[%emt 0:00:00]} 54. c7 {[%emt 0:00:00]} Nc6 {[%emt 0:02:00]} 55. cxb8=Q {[%emt 0:00:00]} Nxb8 {[%emt 0:00:00]} 56. d8=Q {[%emt 0:11:00]} Nc6 {[%emt 0:01:00]} 57. Re4+ {[%emt 0:00:00]} Kf7 {[%emt 0:00:00]} 58. Qe8+ {[%emt 0:00:00]} Kg7 {[%emt 0:01:00]} 59. Qd7+ {[%emt 0:00:00]} Kf6 {[%emt 0:00:00]} 1-0

[Event "Western Asian Girls Chess-ch 2023"]
[Site "Colombo"]
[Date "2023.12.04"]
[Round "8.8"]
[White "Ekaratne, Chenaya"]
[Black "Ahmed, Walijah"]
[Result "0-1"]
[ECO "D10"]
[WhiteElo "1217"]
[BlackElo "1858"]
[Annotator "NA RC"]
[PlyCount "147"]
[EventDate "2023.11.30"]
[EventCountry "SRI"]
[SourceTitle "playchess.com"]
[Source "ChessBase"]
[SourceQuality "1"]
[TimeControl "5400+30"]

1. d4 {[%emt 0:01:38]} d5 {[%emt 0:00:11]} 2. c4 {[%emt 0:00:13]} dxc4 {[%emt 0:00:37]} 3. e4 {[%emt 0:00:27]} b5 {[%emt 0:00:29]} 4. Nc3 {[%emt 0:00:39]} c6 {[%emt 0:01:33]} 5. a4 {[%emt 0:00:25]} b4 {[%emt 0:01:29]} 6. Na2 {[%emt 0:02:11]} e5 {[%emt 0:01:31]} 7. Nf3 {[%emt 0:02:49]} exd4 {[%emt 0:09:59]} 8. Bxc4 {[%emt 0:01:38]} Nd7 {[%emt 0:07:23]} 9. Nxd4 {[%emt 0:03:09]} Ne5 {[%emt 0:06:13]} 10. Be2 {[%emt 0:01:50]} c5 {[%emt 0:05:26]} 11. Nf3 {[%emt 0:02:24]} Qxd1+ {[%emt 0:01:01]} 12. Kxd1 {[%emt 0:02:54]} Nxf3 {[%emt 0:00:40]} 13. Bxf3 {[%emt 0:00:19]} Be6 {[%emt 0:01:02]} 14. Be3 {[%emt 0:01:17]} Rd8+ {[%emt 0:01:18]} 15. Ke1 {[%emt 0:01:41]} Nf6 {[%emt 0:07:35]} 16. h3 {[%emt 0:02:10]} Be7 {[%emt 0:01:26]} 17. g3 {[%emt 0:00:47]} Bc4 {[%emt 0:03:37]} 18. Nc1 {[%emt 0:00:53]} O-O {[%emt 0:01:23]} 19. g4 {[%emt 0:01:18]} Nd7 {[%emt 0:05:17]} 20. Be2 {[%emt 0:02:55]} Be6 {[%emt 0:10:05]} 21. Nd3 {[%emt 0:12:27]} a5 {[%emt 0:04:27]} 22. Kf1 {[%emt 0:00:42]} g5 {[%emt 0:01:42]} 23. Kg2 {[%emt 0:00:35]} c4 {[%emt 0:01:34]} 24. Ne1 {[%emt 0:00:55]} Bf6 {[%emt 0:00:58]} 25. Rb1 {[%emt 0:00:50]} h6 {[%emt 0:01:15]} 26. Nf3 {[%emt 0:05:18]} Rc8 {[%emt 0:02:29]} 27. Bd4 {[%emt 0:03:53]} Bxd4 {[%emt 0:03:13]} 28. Nxd4 {[%emt 0:00:14]} Nc5 {[%emt 0:00:40]} 29. Nxe6 {[%emt 0:00:32]} Nxe6 {[%emt 0:00:06]} 30. Rbc1 {[%emt 0:00:27]} c3 {[%emt 0:03:04]} 31. bxc3 {[%emt 0:00:27]} bxc3 {[%emt 0:00:05]} 32. Rhd1 {[%emt 0:00:24]} Nf4+ {[%emt 0:01:13]} 33. Kf1 {[%emt 0:00:58]} Rc5 {[%emt 0:00:51]} 34. Ke1 {[%emt 0:48:11]} Rfc8 {[%emt 0:03:27]} 35. Bf1 {[%emt 0:00:00]} Kg7 {[%emt 0:01:47]} 36. f3 {[%emt 0:00:00]} Rb8 {[%emt 0:01:14]} 37. Rc2 {[%emt 0:00:00]} Rb4 {[%emt 0:01:35]} 38. Rdc1 {[%emt 0:00:00]} Rb3 {[%emt 0:01:24]} 39. Kf2 {[%emt 0:00:00]} Ra3 {[%emt 0:02:26]} 40. Ke3 {[%emt 0:00:00]} Kf6 {[%emt 0:03:20]} 41. h4 {[%emt 0:00:00]} Ke5 {[%emt 0:01:37]} 42. hxg5 {[%emt 0:00:00]} hxg5 {[%emt 0:00:32]} 43. Bb5 {[%emt 0:00:00]} Rb3 {[%emt 0:00:58]} 44. Ba6 {[%emt 0:00:00]} Ne6 {[%emt 0:00:48]} 45. Kd3 {[%emt 0:00:00]} Nd4 {[%emt 0:01:09]} 46. Bc4 {[%emt 0:00:00]} Rxc4 {[%emt 0:02:24]} 47. Kxc4 {[%emt 0:00:00]} Rb4+ {[%emt 0:00:11]} 48. Kc5 {[%emt 0:00:00]} Nxc2 {[%emt 0:00:15]} 49. Rxc2 {[%emt 0:00:00]} Rxa4 {[%emt 0:00:17]} 50. Rxc3 {[%emt 0:00:00]} Ra1 {[%emt 0:00:18]} 51. Kb5 {[%emt 0:00:00]} Kf4 {[%emt 0:00:22]} 52. Rc7 {[%emt 0:00:00]} Kxf3 {[%emt 0:00:46]} 53. Rxf7+ {[%emt 0:00:00]} Kxg4 {[%emt 0:02:18]} 54. e5 {[%emt 0:00:00]} Re1 {[%emt 0:00:00]} 55. Kxa5 {[%emt 0:00:00]} Rxe5+ {[%emt 0:00:00]} 56. Kb4 {[%emt 0:00:00]} Rd5 {[%emt 0:00:00]} 57. Kc4 {[%emt 0:00:00]} Rd1 {[%emt 0:00:00]} 58. Rg7 {[%emt 0:00:00]} Kf4 {[%emt 0:00:00]} 59. Rf7+ {[%emt 0:00:00]} Kg3 {[%emt 0:00:00]} 60. Rg7 {[%emt 0:00:00]} g4 {[%emt 0:00:00]} 61. Kc3 {[%emt 0:00:00]} Kf3 {[%emt 0:00:00]} 62. Rf7+ {[%emt 0:00:00]} Kg2 {[%emt 0:00:00]} 63. Rg7 {[%emt 0:00:00]} g3 {[%emt 0:00:00]} 64. Rg8 {[%emt 0:00:00]} Kf2 {[%emt 0:00:00]} 65. Rf8+ {[%emt 0:00:00]} Kg1 {[%emt 0:00:00]} 66. Rg8 {[%emt 0:00:00]} g2 {[%emt 0:00:00]} 67. Kc4 {[%emt 0:00:00]} Kf2 {[%emt 0:00:51]} 68. Rf8+ {[%emt 0:00:00]} Ke3 {[%emt 0:00:07]} 69. Re8+ {[%emt 0:00:00]} Kf4 {[%emt 0:00:06]} 70. Rf8+ {[%emt 0:00:00]} Ke5 {[%emt 0:00:05]} 71. Re8+ {[%emt 0:00:00]} Kf6 {[%emt 0:00:04]} 72. Rg8 {[%emt 0:00:00]} g1=Q {[%emt 0:00:05]} 73. Rxg1 {[%emt 0:00:00]} Rxg1 {[%emt 0:00:05]} 74. Kd4 {[%emt 0:20:00]} 0-1

[Event "Western Asian Girls Chess-ch 2023"]
[Site "Colombo"]
[Date "2023.12.05"]
[Round "9.1"]
[White "Sultanbek, Zeinep"]
[Black "Sasvatha A"]
[Result "1/2-1/2"]
[ECO "D11"]
[WhiteElo "2008"]
[BlackElo "1568"]
[Annotator "NA RC"]
[PlyCount "31"]
[EventDate "2023.11.30"]
[EventCountry "SRI"]
[SourceTitle "playchess.com"]
[Source "ChessBase"]
[SourceQuality "1"]
[TimeControl "5400+30"]

1. c4 {[%emt 0:00:00]} Nf6 2. g3 {[%emt 0:00:21]} c6 3. d4 {[%emt 0:00:40]} d5 {[%emt 0:02:29]} 4. Nf3 {[%emt 0:00:03]} Bf5 {[%emt 0:00:25]} 5. Qb3 {[%emt 0:00:05]} Qb6 {[%emt 0:01:20]} 6. Nc3 {[%emt 0:00:06]} e6 {[%emt 0:00:07]} 7. c5 {[%emt 0:00:05]} Qc7 {[%emt 0:00:53]} 8. Bf4 {[%emt 0:01:27]} Qc8 {[%emt 0:01:44]} 9. Nh4 {[%emt 0:02:43]} Bg6 {[%emt 0:03:20]} 10. Nxg6 {[%emt 0:02:07]} hxg6 {[%emt 0:00:07]} 11. Bg2 {[%emt 0:00:03]} Nbd7 {[%emt 0:00:42]} 12. Be3 {[%emt 0:00:05]} Nb8 {[%emt 0:00:04]} 13. Bf4 {[%emt 0:00:02]} Nbd7 {[%emt 0:00:05]} 14. Be3 {[%emt 0:00:03]} Nb8 {[%emt 0:00:05]} 15. Bf4 {[%emt 0:00:02]} Nbd7 {[%emt 0:00:04]} 16. Be3 {[%emt 0:00:04]} 1/2-1/2

[Event "Western Asian Girls Chess-ch 2023"]
[Site "Colombo"]
[Date "2023.12.05"]
[Round "9.2"]
[White "Bayrambayeva, Ogulsuray"]
[Black "Rindhiya V"]
[Result "1-0"]
[ECO "E16"]
[WhiteElo "1909"]
[BlackElo "1876"]
[Annotator "NA RC"]
[PlyCount "93"]
[EventDate "2023.11.30"]
[EventCountry "SRI"]
[SourceTitle "playchess.com"]
[Source "ChessBase"]
[SourceQuality "1"]
[TimeControl "5400+30"]

1. d4 {[%emt 0:00:45]} Nf6 {[%emt 0:00:00]} 2. c4 {[%emt 0:00:30]} e6 {[%emt 0:00:00]} 3. Nf3 {[%emt 0:00:30]} Bb4+ 4. Nbd2 {[%emt 0:00:30]} b6 {[%emt 0:00:28]} 5. g3 {[%emt 0:00:25]} Bb7 {[%emt 0:00:16]} 6. Bg2 {[%emt 0:00:15]} Bxd2+ {[%emt 0:01:33]} 7. Bxd2 {[%emt 0:00:07]} O-O {[%emt 0:01:23]} 8. O-O {[%emt 0:00:17]} d6 {[%emt 0:01:19]} 9. b3 {[%emt 0:04:57]} Nbd7 {[%emt 0:00:31]} 10. Rc1 {[%emt 0:01:11]} e5 {[%emt 0:20:03]} 11. dxe5 {[%emt 0:01:21]} dxe5 {[%emt 0:00:15]} 12. Bc3 {[%emt 0:05:21]} Re8 {[%emt 0:05:22]} 13. Re1 {[%emt 0:02:40]} c6 {[%emt 0:06:45]} 14. Nh4 {[%emt 0:09:27]} Nc5 {[%emt 0:13:24]} 15. Qc2 {[%emt 0:02:25]} Qc7 {[%emt 0:01:16]} 16. b4 {[%emt 0:03:10]} Ncd7 {[%emt 0:02:33]} 17. Red1 {[%emt 0:06:16]} c5 {[%emt 0:15:27]} 18. Bxb7 {[%emt 0:12:25]} Qxb7 {[%emt 0:00:02]} 19. b5 {[%emt 0:00:14]} g6 {[%emt 0:06:26]} 20. Rd6 {[%emt 0:02:40]} Re7 {[%emt 0:05:20]} 21. Rcd1 {[%emt 0:02:00]} Ne8 {[%emt 0:03:54]} 22. R6d2 {[%emt 0:03:31]} Ng7 {[%emt 0:01:43]} 23. Qb2 {[%emt 0:04:21]} Ne6 {[%emt 0:05:14]} 24. Rd5 {[%emt 0:04:27]} f6 {[%emt 0:01:14]} 25. Ng2 {[%emt 0:05:01]} Ndf8 {[%emt 0:01:37]} 26. Rd6 {[%emt 0:01:44]} Qe4 {[%emt 0:03:09]} 27. Ne3 {[%emt 0:02:56]} Ng5 {[%emt 0:00:08]} 28. Ng2 {[%emt 0:01:22]} Qxc4 {[%emt 0:01:27]} 29. Rxf6 {[%emt 0:00:38]} Ne4 {[%emt 0:01:52]} 30. Rf3 {[%emt 0:00:06]} Ne6 {[%emt 0:00:44]} 31. Bxe5 {[%emt 0:04:51]} N6g5 {[%emt 0:00:01]} 32. Ne3 {[%emt 0:00:49]} Nxf3+ {[%emt 0:02:20]} 33. exf3 {[%emt 0:00:05]} Qe6 {[%emt 0:00:02]} 34. Bf4 {[%emt 0:00:12]} g5 {[%emt 0:01:05]} 35. fxe4 {[%emt 0:00:56]} gxf4 {[%emt 0:00:02]} 36. Nf5 {[%emt 0:00:15]} Rd7 {[%emt 0:01:02]} 37. Rxd7 {[%emt 0:01:31]} Qxd7 {[%emt 0:00:01]} 38. Nh6+ {[%emt 0:01:00]} Kf8 {[%emt 0:00:18]} 39. Qh8+ {[%emt 0:01:01]} Ke7 {[%emt 0:01:44]} 40. Qxa8 {[%emt 0:00:16]} f3 {[%emt 0:00:00]} 41. Nf5+ {[%emt 0:01:08]} Kf7 {[%emt 0:00:25]} 42. Qd5+ {[%emt 0:00:12]} Qxd5 {[%emt 0:00:04]} 43. exd5 {[%emt 0:00:05]} Kf6 {[%emt 0:00:06]} 44. Ne3 {[%emt 0:00:09]} Ke5 {[%emt 0:00:03]} 45. Kf1 {[%emt 0:00:06]} c4 {[%emt 0:00:03]} 46. Ke1 {[%emt 0:00:06]} c3 {[%emt 0:00:02]} 47. Kd1 {[%emt 0:19:46]} 1-0

[Event "Western Asian Girls Chess-ch 2023"]
[Site "Colombo"]
[Date "2023.12.05"]
[Round "9.3"]
[White "Sachi Jain"]
[Black "Gunawardhana, Devindya Oshini"]
[Result "0-1"]
[ECO "C54"]
[WhiteElo "1743"]
[BlackElo "1741"]
[Annotator "NA RC"]
[PlyCount "58"]
[EventDate "2023.11.30"]
[EventCountry "SRI"]
[SourceTitle "playchess.com"]
[Source "ChessBase"]
[SourceQuality "1"]
[TimeControl "5400+30"]

1. e4 {[%emt 0:03:43]} e5 {[%emt 0:00:27]} 2. Nf3 {[%emt 0:00:07]} Nc6 {[%emt 0:00:06]} 3. Bc4 {[%emt 0:00:07]} Nf6 {[%emt 0:00:08]} 4. d3 {[%emt 0:00:04]} Bc5 {[%emt 0:00:09]} 5. c3 {[%emt 0:00:07]} d6 {[%emt 0:00:03]} 6. Nbd2 {[%emt 0:00:21]} O-O {[%emt 0:00:28]} 7. O-O {[%emt 0:00:07]} a6 {[%emt 0:00:25]} 8. Bb3 {[%emt 0:00:16]} h6 {[%emt 0:00:18]} 9. Re1 {[%emt 0:00:07]} Ba7 {[%emt 0:00:31]} 10. Nf1 {[%emt 0:00:19]} Re8 {[%emt 0:00:29]} 11. Ng3 {[%emt 0:03:20]} Be6 {[%emt 0:00:37]} 12. Bc2 {[%emt 0:09:40]} d5 {[%emt 0:00:15]} 13. exd5 {[%emt 0:00:07]} Bxd5 {[%emt 0:00:21]} 14. b4 {[%emt 0:00:33]} Qd7 {[%emt 0:08:14]} 15. a4 {[%emt 0:02:55]} b5 {[%emt 0:04:44]} 16. Be3 {[%emt 0:09:29]} Bxe3 {[%emt 0:26:36]} 17. fxe3 {[%emt 0:06:34]} Bxf3 {[%emt 0:04:29]} 18. Qxf3 {[%emt 0:01:42]} e4 {[%emt 0:04:44]} 19. Qf5 {[%emt 0:22:42]} Qxf5 {[%emt 0:09:13]} 20. Nxf5 {[%emt 0:00:02]} exd3 {[%emt 0:01:03]} 21. axb5 {[%emt 0:09:11]} Ne5 {[%emt 0:01:31]} 22. Ba4 {[%emt 0:03:12]} axb5 {[%emt 0:05:26]} 23. Bxb5 {[%emt 0:00:20]} Rxa1 {[%emt 0:04:21]} 24. Rxa1 {[%emt 0:00:02]} c6 {[%emt 0:00:08]} 25. Ba4 {[%emt 0:06:07]} Ra8 {[%emt 0:00:25]} 26. Kf1 {[%emt 0:02:20]} Ne4 {[%emt 0:00:26]} 27. Ra3 {[%emt 0:03:52]} Nc4 {[%emt 0:00:35]} 28. Ra1 {[%emt 0:00:11]} d2 {[%emt 0:00:16]} 29. Ke2 {[%emt 0:01:08]} Rxa4 {[%emt 0:00:31]} 0-1

[Event "Western Asian Girls Chess-ch 2023"]
[Site "Colombo"]
[Date "2023.12.05"]
[Round "9.4"]
[White "Bhagyashree Patil"]
[Black "Shohradova, Lala"]
[Result "0-1"]
[ECO "C07"]
[WhiteElo "1830"]
[BlackElo "1846"]
[Annotator "NA RC"]
[PlyCount "111"]
[EventDate "2023.11.30"]
[EventCountry "SRI"]
[SourceTitle "playchess.com"]
[Source "ChessBase"]
[SourceQuality "1"]
[TimeControl "5400+30"]

1. e4 {[%emt 0:01:27]} e6 {[%emt 0:00:00]} 2. d4 d5 {[%emt 1:31:30]} 3. Nd2 {[%emt 0:01:00]} c5 {[%emt 0:00:00]} 4. exd5 {[%emt 0:00:03]} Qxd5 {[%emt 0:00:00]} 5. Ngf3 {[%emt 0:00:04]} cxd4 {[%emt 0:00:00]} 6. Bc4 {[%emt 0:00:05]} Qd6 {[%emt 0:00:00]} 7. O-O {[%emt 0:00:04]} Nf6 {[%emt 0:00:00]} 8. Nb3 {[%emt 0:00:05]} Nc6 {[%emt 0:00:00]} 9. Nbxd4 {[%emt 1:32:12]} Nxd4 {[%emt 0:00:00]} 10. Nxd4 {[%emt 0:00:00]} Bd7 {[%emt 0:00:00]} 11. h3 {[%emt 0:00:00]} Be7 {[%emt 0:00:00]} 12. c3 {[%emt 0:00:00]} O-O {[%emt 0:00:00]} 13. Bb3 {[%emt 0:00:00]} Rfd8 {[%emt 0:00:00]} 14. Qf3 {[%emt 0:00:00]} a5 {[%emt 0:00:00]} 15. Re1 {[%emt 0:00:00]} a4 {[%emt 0:00:00]} 16. Bc2 {[%emt 0:00:00]} Nd5 {[%emt 0:00:00]} 17. Bd2 {[%emt 0:00:00]} Bf6 {[%emt 0:00:00]} 18. Rad1 {[%emt 0:00:00]} Qb6 {[%emt 0:00:00]} 19. Bc1 {[%emt 0:00:00]} a3 {[%emt 0:00:00]} 20. bxa3 {[%emt 0:00:00]} Rac8 {[%emt 0:00:00]} 21. Qd3 {[%emt 0:00:00]} g6 {[%emt 0:00:00]} 22. c4 {[%emt 0:00:00]} Ne7 {[%emt 0:00:00]} 23. Bb3 {[%emt 0:00:00]} Be8 {[%emt 0:00:00]} 24. Be3 {[%emt 0:00:00]} Qd6 {[%emt 0:00:00]} 25. Qe4 {[%emt 0:00:00]} Qa6 {[%emt 0:00:00]} 26. Bc1 {[%emt 0:00:00]} e5 {[%emt 0:00:00]} 27. Nc2 {[%emt 0:00:00]} Bc6 {[%emt 0:00:00]} 28. Qe2 {[%emt 0:00:00]} Nf5 {[%emt 0:00:00]} 29. Bb2 {[%emt 0:00:00]} Re8 {[%emt 0:00:00]} 30. Nb4 {[%emt 0:00:00]} Qb6 {[%emt 0:00:00]} 31. Nd5 {[%emt 0:00:00]} Bxd5 {[%emt 0:00:00]} 32. Rxd5 {[%emt 0:00:00]} Re7 {[%emt 0:00:00]} 33. Bxe5 {[%emt 0:02:43]} Rce8 {[%emt 0:00:00]} 34. c5 {[%emt 0:00:05]} Qa5 {[%emt 0:00:00]} 35. f4 {[%emt 0:00:31]} Re6 {[%emt 0:00:41]} 36. Qd2 {[%emt 0:05:48]} Qa7 {[%emt 0:00:38]} 37. Kh2 {[%emt 0:01:22]} Bh4 {[%emt 0:00:31]} 38. Rd1 {[%emt 0:01:37]} Qxa3 {[%emt 0:07:20]} 39. Rd7 {[%emt 0:02:11]} R6e7 {[%emt 0:00:23]} 40. Rxe7 {[%emt 0:00:33]} Bxe7 {[%emt 0:00:02]} 41. Qd7 {[%emt 0:00:36]} Rf8 {[%emt 0:00:22]} 42. Bd6 {[%emt 0:00:30]} Bxd6 {[%emt 0:01:14]} 43. cxd6 {[%emt 0:00:03]} Qb4 {[%emt 0:00:13]} 44. Rf1 {[%emt 0:00:58]} Nxd6 {[%emt 0:00:19]} 45. Rf3 {[%emt 0:00:16]} Nf5 {[%emt 0:00:32]} 46. Qc7 {[%emt 0:00:22]} Nd4 {[%emt 0:00:44]} 47. Rd3 {[%emt 0:00:41]} Ne2 {[%emt 0:00:20]} 48. Rd7 {[%emt 0:00:32]} Qe1 {[%emt 0:00:16]} 49. Rd1 {[%emt 0:00:41]} Qg3+ {[%emt 0:00:09]} 50. Kh1 {[%emt 0:00:01]} Nxf4 {[%emt 0:00:19]} 51. Qxb7 {[%emt 0:00:03]} Nd3 {[%emt 0:00:30]} 52. Rxd3 {[%emt 0:01:24]} Qxd3 {[%emt 0:00:01]} 53. a4 {[%emt 0:00:16]} Qf1+ {[%emt 0:00:27]} 54. Kh2 {[%emt 0:00:02]} Qf4+ {[%emt 0:00:08]} 55. Kh1 {[%emt 0:00:01]} Re8 {[%emt 0:00:14]} 56. Bd5 {[%emt 0:02:14]} 0-1